Cogmind - Beta 15 @@@ ROGUE MODE // 2025.06.01 @ 02:41:12 Player: Player Result: Destroyed by H-66 Slayer with Gauss Rifle Performance ------------- Evolutions (5) 2500 Regions Visited (10) 2000 Robots Destroyed (161) 805 Value Destroyed (5620) 5620 Prototype IDs (6) 120 Alien Tech Used (0) 0 Bonus (3043) 3043 TOTAL SCORE: 14088 Bonus ------- High Alert Combat Kills 301 Follower Combat Kills 2015 Network Hubs Disabled 400 Built Enhanced Grunts 300 A7 Reached Mainframe 300 Friendly Fire -273 Cogmind --------- Core Integrity 0/1000 Matter 194/300 Energy 100/100 System Corruption 5% Temperature Cool (0) Movement Core (1350) Ox26 Location -5/Factory Parts ------- > --- POWER (1) -------- (None) > --- PROPULSION (5) --- (None) > --- UTILITY (8) ------ Huge Storage Unit Advanced Signal Interpreter Improved Terrain Scan Processor Hacking Suite Hacking Suite > --- WEAPON (3) ------- (None) > --- INVENTORY (25) --- Angular Momentum Engine Centrium Heavy Treads Machine Analyzer Enhanced Optical Array Advanced Terrain Scanner Seismic Detector Advanced Targeting Computer Advanced Particle Charger Transmission Jammer Improved Medium Armor Plating Improved Medium Armor Plating Layered Heavy Armor Plating Improved Focal Shield Improved Thermal Shield EM Shield Improved Shield Generator Hacking Suite Hacking Suite System Shield Long-range Tractor Beam Advanced KE Penetrator Magnetic Acceleration Cannon Heavy Missile Launcher Peak State ------------ > --- POWER ------------ Neutrino Core > --- PROPULSION ------- Improved Treads Improved Medium Treads Centrium Heavy Treads > --- UTILITY ---------- Huge Storage Unit Advanced Signal Interpreter Improved Terrain Scan Processor Advanced Targeting Computer Centrium Medium Armor Plating Hacking Suite Hacking Suite > --- WEAPON ----------- Wave Gun Neutron Cannon Advanced KE Penetrator > --- INVENTORY -------- Improved Treads Advanced Heat Sink Machine Analyzer Advanced Visual Processing Unit Improved Sensor Array Improved Terrain Scanner Seismic Detector Advanced Targeting Computer Advanced Particle Charger Transmission Jammer Improved Medium Armor Plating Improved Medium Armor Plating Improved Medium Armor Plating Focal Shield Shock Absorption System Improved Shield Generator Hacking Suite System Shield High-powered Tractor Beam Coil Gun Mini Assault Cannon Magnetic Acceleration Cannon Bore Cannon Heavy Missile Launcher Powered Hammer [Rating: 88] Favorites ----------- Power Improved Ion Engine Engine Improved Ion Engine Power Core Enhanced Nuclear Core Reactor Antimatter Reactor Propulsion Light Treads Treads Light Treads Leg Flexi-carbon Leg Wheel Armored Wheel Hover Unit Hover Unit Flight Unit Field Propulsion Drive Utility Hacking Suite Device Improved Sensor Array Storage Huge Storage Unit Processor Advanced Targeting Computer Hackware Hacking Suite Protection Medium Armor Plating Weapon Mini Assault Cannon Energy Gun Wave Gun Energy Cannon Heavy Particle Cannon Ballistic Gun Assault Rifle Ballistic Cannon Mini Assault Cannon Impact Weapon Powered Hammer Build | -11 -10 -9 -8 -7 -6 -6 -6 -6 -6 -5 ------- Run | Yrd Mat Mat Mat Fac Fac Ext Cet Arc Hub Fac Slots Evolved 10 | . . 2 2 2 2 . . . . 2 Power . | . . . . . . . . . . . Propulsion 3 | . . 1 . 1 . . . . . 1 Utility 6 | . . 1 1 1 2 . . . . 1 Weapon 1 | . . . 1 . . . . . . . Parts Attached 143 | 6 3 16 17 20 22 15 7 4 4 29 Power 20 | 1 1 1 1 3 2 5 . 1 1 4 Engine 12 | 1 . 1 1 3 1 3 . . . 2 Core 6 | . 1 . . . 1 2 . 1 . 1 Reactor 2 | . . . . . . . . . 1 1 Propulsion 41 | 1 1 4 3 7 4 4 1 1 2 13 Treads 26 | 1 1 4 2 7 4 2 1 1 2 1 Leg 6 | . . . . . . . . . . 6 Wheel 7 | . . . 1 . . 2 . . . 4 Hover 1 | . . . . . . . . . . 1 Flight 1 | . . . . . . . . . . 1 Utility 45 | 2 1 5 8 7 9 4 2 . 1 6 Device 21 | 1 . . 4 4 5 . 1 . 1 5 Storage 6 | 1 1 2 1 . . 1 . . . . Processor 4 | . . . 1 . 1 2 . . . . Hackware 3 | . . . . 1 2 . . . . . Protection 11 | . . 3 2 2 1 1 1 . . 1 Artifact . | . . . . . . . . . . . Weapon 37 | 2 . 6 5 3 7 2 4 2 . 6 Energy Gun 7 | 1 . . . 1 . 2 1 1 . 1 Energy Cannon 8 | . . . 2 1 2 . . 1 . 2 Ballistic Gun 10 | 1 . 5 . 1 1 . 2 . . . Ballistic Cannon 7 | . . . 2 . 2 . 1 . . 2 Launcher . | . . . . . . . . . . . Special Weapon . | . . . . . . . . . . . Impact Weapon 5 | . . 1 1 . 2 . . . . 1 Slashing Weapon . | . . . . . . . . . . . Piercing Weapon . | . . . . . . . . . . . Special Melee Weapon . | . . . . . . . . . . . Unidentified Prototypes 6 | . . . . . 2 . 3 1 . . Corrupted Parts 1 | . . . . . . . . . . 1 System Corruption 1 | . . . . . . . . . . 1 Parts Lost 43 | . . 3 1 1 9 1 . . 6 22 Power 6 | . . 1 . . 1 . . . 1 3 Propulsion 20 | . . . . 1 4 1 . . 3 11 Utility 9 | . . 1 1 . 3 . . . 1 3 Weapon 8 | . . 1 . . 1 . . . 1 5 Highest Loss Streak 12 | . . 1 1 1 3 1 . . 3 12 To Critical Strikes . | . . . . . . . . . . . Average Backups 22 | 4 8 19 24 24 24 24 25 24 24 23 Power . | . . . . . . 1 . . . . Propulsion 2 | 1 . 2 6 3 2 1 . . . . Utility 15 | 1 5 11 13 18 18 16 15 17 18 18 Weapon 4 | 1 2 4 4 3 2 5 9 7 6 3 Tool/Special . | . . . . . . . . . . . Unused Backups 56 | . 2 6 11 5 4 2 . 3 1 22 Power 6 | . 1 1 1 1 . . . . . 2 Propulsion 1 | . 1 . . . . . . . . . Utility 36 | . . 1 7 4 3 1 . 2 . 18 Weapon 13 | . . 4 3 . 1 1 . 1 1 2 Tool/Special . | . . . . . . . . . . . Average Slot Usage (%) 96 | . 99 93 98 99 98 97 94 93 90 93 Engine 4 | . 3 7 8 7 3 . 4 3 . 1 Core 2 | . 10 3 . . 1 5 1 3 1 . Treads 20 | . 27 30 20 23 25 18 21 20 19 4 Leg 1 | . . . . . . . . . . 6 Wheel 4 | . . . 6 6 . 6 . . . 8 Device 10 | . 14 9 13 10 16 6 . . 1 9 Storage 7 | . 14 11 9 7 6 6 6 6 6 5 Processor 9 | . . . . 7 13 13 20 20 20 16 Hackware 6 | . . . . 6 7 13 13 13 13 11 Protection 4 | . . 8 12 5 1 4 5 6 3 . Energy Gun 2 | . 14 . . 1 1 2 6 6 . 4 Energy Cannon 4 | . . . 5 12 5 . . 2 5 2 Ballistic Gun 5 | . 14 20 6 3 4 . 4 6 6 . Ballistic Cannon 5 | . . . 15 3 3 12 7 3 5 5 Impact Weapon 1 | . . . . . 3 2 . . . 2 Peak Build Rating 88 | 7 10 17 25 42 59 65 85 88 88 82 Average Rating 45 | 5 9 13 21 34 51 59 79 86 83 71 On Entrance 42 | . 7 10 17 25 42 59 65 85 88 69 Naked Turns . | . . . . . . . . . . . Heaviest Build 126 | 15 30 101 108 114 113 113 115 121 126 121 Greatest Support 133 | 20 40 63 63 84 100 102 130 133 133 100 Greatest Overweight (x) 27 | 1 . 1 8 9 5 6 1 . 1 27 Average Overweight (x) 3 | . . . 6 6 1 2 . . . 5 Largest Inventory Capacity 25 | 8 15 25 25 25 25 25 25 25 25 25 Average Capacity 23 | 7 11 21 25 25 25 25 25 25 25 25 Most Carried 25 | 8 10 25 25 25 25 25 25 25 25 25 Average Carried 23 | 4 8 19 24 24 24 24 25 24 24 24 Final Capacity 25 | 8 15 25 25 25 25 25 25 25 25 25 Final Carried 25 | 8 10 25 25 25 20 25 25 25 25 25 Class Distribution -------------------- 21% | Scavenger-Skirmisher 16% | Scavenger-Tank 14% | Scavenger-Mutant 12% | Mutant 11% | Hacker-Mutant 4% | Scavenger-Assassin 4% | Hacker-Gunner 4% | Commander-Tank Dominant Class ---------------- Mutant | -10/Materials Scavenger-Mutant | -9/Materials Scavenger-Tank | -8/Materials Scavenger-Skirmisher | -7/Factory Scavenger-Assassin | -6/Factory Hacker-Mutant | -6/Extension Commander-Tank | -6/Cetus Commander-Tank | -6/Archives Scavenger-Tank | -6/Hub_04(d) Scavenger-Mutant | -5/Factory Resources | -11 -10 -9 -8 -7 -6 -6 -6 -6 -6 -5 ----------- Run | Yrd Mat Mat Mat Fac Fac Ext Cet Arc Hub Fac Matter Collected 5145 | 261 110 655 444 647 813 849 191 70 364 741 Remotely 491 | . . . . . 156 201 134 . . . Salvage Created 6578 | 134 214 1113 427 977 1265 778 20 80 822 748 Parts 339 | 13 19 74 25 54 46 17 2 4 44 41 Haulers Intercepted 4 | . . 1 . 1 1 . . . 1 . Recyclers Shooed 8 | . . . 1 2 2 1 . . . 2 Parts Field Recycled . | . . . . . . . . . . . Retrieved Matter . | . . . . . . . . . . . Parts Self-Destructed . | . . . . . . . . . . . Prevented . | . . . . . . . . . . . Kills | -11 -10 -9 -8 -7 -6 -6 -6 -6 -6 -5 ------- Run | Yrd Mat Mat Mat Fac Fac Ext Cet Arc Hub Fac Combat Hostiles Destroyed 102 | . 3 26 10 11 21 11 . 1 10 9 Guns 43 | . 3 26 3 2 4 2 . 1 2 . Cannons 54 | . . . 7 9 14 9 . . 6 9 AOE 5 | . . . . . 3 . . . 2 . Classes Destroyed 15 | 2 4 4 1 1 1 . . . 1 1 Worker 9 | . . 1 . . 1 . . . 4 3 Builder 1 | . . . . . . . . . . 1 Tunneler 4 | 3 . . . . . . . . 1 . Hauler 4 | . . 1 . 1 1 . . . 1 . Recycler 11 | 1 . 1 . 4 1 2 . . . 2 Mechanic 2 | . 1 . 1 . . . . . . . Operator 10 | . 1 3 1 2 . 1 . . 1 1 Watcher 16 | . 2 4 2 3 2 . 1 . 1 1 Swarmer 15 | . . 11 3 . . 1 . . . . Grunt 42 | . 3 11 . 3 14 6 . . 3 2 Duelist 1 | . . . . . 1 . . . . . Sentry 21 | . . 4 6 1 1 4 . 1 3 1 Specialist 1 | . . . . . . . . . 1 . Hunter 8 | . . . 1 3 . . . . 2 2 Programmer 14 | . . . . 4 5 . . . 1 4 Thug 1 | . . . . . . . . . 1 . Guerrilla 1 | . . . . . . . . . 1 . Best Kill Streak 7 | 4 2 7 3 2 7 2 1 1 5 4 Combat Bots Only 7 | . 2 7 3 2 7 2 . 1 2 3 Max Kills in Single Turn 4 | 1 1 2 1 2 2 1 1 1 4 2 Gunslinging 1 | . . 1 . . . . . . . . Exploded 1 | . . . . . 1 . . . 1 . Melee . | . . . . . . . . . . . Uniques/NPCs Destroyed . | . . . . . . . . . . . Combat | -11 -10 -9 -8 -7 -6 -6 -6 -6 -6 -5 -------- Run | Yrd Mat Mat Mat Fac Fac Ext Cet Arc Hub Fac Hostile Shots Fired 955 | . 13 124 57 95 153 105 4 2 142 260 Missed 252 | . 4 35 15 28 41 26 1 . 29 73 Hits 703 | . 9 89 42 67 112 79 3 2 113 187 Melee 7 | . . . . . 3 . . . 4 . Projectile 696 | . 9 89 42 67 109 79 3 2 109 187 AOE 1 | . . . . . . . . . 1 . Critical Strikes 27 | . . 2 . 2 7 1 1 . 11 3 Part Disruptions 1 | . . . . . 1 . . . . . Damage Taken 11501 | . 118 938 556 915 2025 611 150 67 2481 3640 Core 1787 | . 29 126 68 47 306 65 . 20 126 1000 Absorbed by Shields 555 | . . . . 93 126 308 28 . . . Reduced by Siege Mode 109 | . . . . . . . . . 109 . Redirected to Shielding 33 | . . 12 21 . . . . . . . Ignored by Resistances 165 | . . . . . . . . . . 165 Regen/Repaired (Parts) 355 | . . 120 235 . . . . . . . Core Remaining (%) 79 | 100 88 68 87 93 . . . . 39 . Volleys Fired 411 | 4 27 86 34 42 68 53 5 1 37 54 Largest 3 | 2 2 2 3 3 3 3 3 3 3 3 Hottest 206 | 60 60 60 165 165 171 155 165 160 169 206 Shots Fired 905 | 8 54 170 101 113 140 99 16 3 88 113 Gun 409 | 8 54 170 24 30 39 20 6 2 31 25 Cannon 496 | . . . 77 83 101 79 10 1 57 88 Launcher . | . . . . . . . . . . . Special . | . . . . . . . . . . . Kinetic 621 | 4 27 164 81 40 83 75 11 2 68 66 Thermal 188 | . . . 20 68 31 20 5 1 20 23 Explosive . | . . . . . . . . . . . Electromagnetic 96 | 4 27 6 . 5 26 4 . . . 24 Robot Hit Streak 20 | 5 12 13 12 14 20 16 11 1 12 20 Robot Miss Streak 9 | 1 9 5 3 5 3 4 2 . 3 2 Penetration Max 1 | . . . . . . . . . 1 . Secondary Targets 4 | . . 4 . . . . . . . . Max Gunslinging Chain 1 | . . 1 . . . . . . . . Shots Hit Robots 591 | 6 30 111 62 65 100 64 12 1 58 82 Core Hits 266 | 5 14 51 21 33 45 27 5 1 31 33 Critical Kills 6 | . . 1 . . 3 . . . 2 . Critical Parts Destroyed 8 | . . 1 1 . 3 . . . 3 . Critical Strikes 26 | . 1 2 3 2 7 2 2 . 6 1 Burn 3 | . . . . . . 1 2 . . . Destroy 14 | . . 2 1 . 5 . . . 6 . Blast 7 | . . . 2 2 1 1 . . . 1 Corrupt 1 | . 1 . . . . . . . . . Smash 1 | . . . . . 1 . . . . . Melee Attacks 101 | . . 3 1 6 20 64 . . . 7 Impact 101 | . . 3 1 6 20 64 . . . 7 Slashing . | . . . . . . . . . . . Piercing . | . . . . . . . . . . . Sneak Attacks 2 | . . . . . 2 . . . . . Combat Hostiles . | . . . . . . . . . . . Follow-up Attacks . | . . . . . . . . . . . Damage Inflicted 14182 | 78 411 1531 1083 1396 3023 1666 351 24 2477 2142 Guns 4490 | 78 381 1531 267 311 304 311 124 24 728 431 Cannons 8483 | . . . 816 1085 2093 1355 227 . 1254 1653 Explosions 838 | . 30 . . . 279 . . . 495 34 Melee 371 | . . . . . 347 . . . . 24 Ramming . | . . . . . . . . . . . Kinetic 8375 | 54 163 1484 736 386 1249 1286 260 . 1368 1389 Thermal 3803 | . 30 . 347 928 840 311 91 24 793 439 Explosive . | . . . . . . . . . . . Electromagnetic 1633 | 24 218 47 . 82 587 69 . . 316 290 Impact 371 | . . . . . 347 . . . . 24 Slashing . | . . . . . . . . . . . Piercing . | . . . . . . . . . . . Highest Corruption 12 | . . . . 4 4 4 4 4 12 5 Average Corruption 3 | . . . . 2 2 4 4 4 4 4 Corruption Purged . | . . . . . . . . . . . Corruption Blocked . | . . . . . . . . . . . Effects 124 | . . . . 19 24 38 7 4 19 13 Message Errors 33 | . . . . 4 7 13 1 2 4 2 Matter Fused 29 | . . . . 5 3 8 3 1 5 4 Heat Flow Errors 12 | . . . . 2 4 2 . . 1 3 Energy Discharges 12 | . . . . . 3 2 1 . 4 2 Parts Rejected 2 | . . . . . . 2 . . . . Parts Fused 1 | . . . . . . . 1 . . . Data Loss (minor) 17 | . . . . 6 4 4 . 1 2 . Data Loss (major) 8 | . . . . 1 1 3 . . 2 1 Misfires 5 | . . . . 1 1 1 1 . . 1 Alerts 2 | . . . . . . 1 . . 1 . Weapon Failures 3 | . . . . . 1 2 . . . . Overload Shots . | . . . . . . . . . . . Overflow Damage 483 | . 20 . . . 344 12 17 . 73 17 Projectiles 136 | . . . . . 46 12 17 . 46 15 Explosions 144 | . 20 . . . 97 . . . 27 . Melee 203 | . . . . . 201 . . . . 2 Knockbacks 44 | . . . 2 1 12 11 . . 7 11 Impact 2 | . . . . . 2 . . . . . Kinetic 37 | . . . 2 1 7 10 . . 6 11 Secondary 5 | . . . . . 3 1 . . 1 . Self-Inflicted Damage 359 | . 7 . . . 229 . . . 95 28 Shots 7 | . 1 . . . 4 . . . 1 1 Rammed . | . . . . . . . . . . . Targets Rammed . | . . . . . . . . . . . Kicked . | . . . . . . . . . . . Crushed . | . . . . . . . . . . . Highest Temperature 542 | . 54 22 198 336 246 348 261 75 542 180 Average Temperature 85 | . 16 7 58 100 73 104 129 39 160 49 Received Heat Transfer 2268 | . 63 279 90 87 676 206 12 9 354 492 Effects 5 | . . . . . . 2 1 . 2 . Energy Bleed 1 | . . . . . . . . . 1 . Interference 3 | . . . . . . 2 1 . . . Matter Decay 1 | . . . . . . . . . 1 . Siege Activations 3 | . . . . . . . . . 3 . Total Turns 62 | . . . . . . . . . 62 . Longest Duration 28 | . . . . . . . . . 28 . Martial Activations . | . . . . . . . . . . . Shielding Activations . | . . . . . . . . . . . Robots Disrupted 2 | . . . . . . . . . . 2 Combat Hostiles 2 | . . . . . . . . . . 2 Robots Corrupted 2 | . . . . . 1 . . . . 1 Combat Hostiles . | . . . . . . . . . . . Parts Fried 5 | . . . . . 4 . . . 1 . Impact Corruptions 8 | . . . . . 7 . . . . 1 Robots Melted . | . . . . . . . . . . . Combat Hostiles . | . . . . . . . . . . . Parts Melted 11 | . . . 2 1 5 2 . . . 1 Heat Transferred 4914 | . 50 . 592 1517 1014 629 296 37 100 679 Parts Sabotaged . | . . . . . . . . . . . Parts Stolen . | . . . . . . . . . . . Parts Stripped . | . . . . . . . . . . . Power Chain Reactions 5 | . 1 . . . 2 . . . 1 1 Alert | -11 -10 -9 -8 -7 -6 -6 -6 -6 -6 -5 ------- Run | Yrd Mat Mat Mat Fac Fac Ext Cet Arc Hub Fac Maximum Alert Level 4 | . . 1 . . 1 2 2 1 4 2 Low Security (%) 75 | 100 100 80 100 100 93 45 . 7 18 68 Level 1 11 | . . 19 . . 6 34 28 92 7 8 Level 2 8 | . . . . . . 19 71 . 3 22 Level 3 4 | . . . . . . . . . 61 . Level 4 . | . . . . . . . . . 8 . Level 5 . | . . . . . . . . . . . High Security . | . . . . . . . . . . . Max Security . | . . . . . . . . . . . Peak Influence 1167 | 10 55 366 140 78 286 651 482 264 1167 560 Initial 560 | . . . 68 26 21 133 357 144 67 560 Average 157 | 1 10 140 52 21 67 244 423 226 641 219 Influence Increases 6389 | 20 142 826 451 426 709 1250 215 160 1691 499 Destroy 0b10 Robot/C 2980 | . 60 520 200 220 420 680 80 80 480 240 Destroy 0b10 Robot/NC 355 | 20 20 50 20 50 25 25 5 . 95 45 Destroy Leader 702 | . 24 130 84 98 86 74 . . 152 54 Allied During Kill 961 | . . . . . . 322 83 80 465 11 Successful Hack 161 | . 16 . 8 38 6 20 19 . 26 28 Select Force Hacks 30 | . . . 30 . . . . . . . Disable Machine 420 | . . . 45 15 105 15 15 . 165 60 Destroy Structure 330 | . 7 6 4 5 52 39 13 . 158 46 Partial Spotted 15 | . . 15 . . . . . . . . Lose Combat Pursuer 435 | . 15 105 60 . 15 75 . . 150 15 Influence Decreases 6374 | 20 139 665 556 442 478 885 492 328 741 1628 Entered New Map 1506 | . . 3 96 33 22 141 282 218 127 584 Time Decay 3613 | 20 139 482 432 392 366 514 190 90 374 614 Lost Part 430 | . . 30 10 10 90 10 . . 60 220 Lost Ally 507 | . . . . 7 . 220 20 20 180 60 Purge Threat 318 | . . 150 18 . . . . . . 150 Squads Dispatched 38 | . 1 5 1 5 8 3 . . 9 6 Investigation 5 | . . 2 1 . 1 . . . . 1 Extermination 12 | . . . . 4 4 . . . 1 3 Reinforcement 20 | . 1 3 . 1 3 3 . . 7 2 Assault 1 | . . . . . . . . . 1 . Garrison . | . . . . . . . . . . . Intercept . | . . . . . . . . . . . Searches Triggered . | . . . . . . . . . . . Construction Impeded 3 | . . . . . 1 1 . . 1 . Haulers Reinforced 4 | . . . . . 2 . . . 1 1 Active Scanning Responses . | . . . . . . . . . . . Cargo Convoy Interrupts 1 | . . . . . . . . . . 1 Stealth | -11 -10 -9 -8 -7 -6 -6 -6 -6 -6 -5 --------- Run | Yrd Mat Mat Mat Fac Fac Ext Cet Arc Hub Fac Distress Signals 20 | . 1 3 1 . 4 3 1 . 5 2 Communications Jammed 4 | . . . 4 . . . . . . . Distress Signals 4 | . . . 4 . . . . . . . Times Spotted 219 | . 12 45 17 19 27 36 5 1 37 20 Peak Tracking Total 10 | . 3 9 7 2 9 6 5 1 10 5 Tactical Retreats 18 | . 1 5 1 . 1 4 . . 5 1 Traps | -11 -10 -9 -8 -7 -6 -6 -6 -6 -6 -5 ------- Run | Yrd Mat Mat Mat Fac Fac Ext Cet Arc Hub Fac Traps Triggered 9 | . . . 1 2 1 4 . . . 1 Indirectly . | . . . . . . . . . . . Trap Hack Attempts . | . . . . . . . . . . . Triggered . | . . . . . . . . . . . Disarmed . | . . . . . . . . . . . Reprogrammed . | . . . . . . . . . . . Reused . | . . . . . . . . . . . Traps Extracted . | . . . . . . . . . . . Installed . | . . . . . . . . . . . Triggered . | . . . . . . . . . . . Machines | -11 -10 -9 -8 -7 -6 -6 -6 -6 -6 -5 ---------- Run | Yrd Mat Mat Mat Fac Fac Ext Cet Arc Hub Fac Machines Disabled 31 | . . . 3 1 7 4 1 . 11 4 Max in Single Turn 8 | . . . 1 1 3 1 1 . 8 1 Garrison Access 2 | . . . . . 1 . . . 1 . Network Hub 2 | . . . . . . . . . 2 . Machines Repaired . | . . . . . . . . . . . Machines Dismantled . | . . . . . . . . . . . Machines Sabotaged . | . . . . . . . . . . . Overloaded Fab Kills . | . . . . . . . . . . . Hacking | -11 -10 -9 -8 -7 -6 -6 -6 -6 -6 -5 --------- Run | Yrd Mat Mat Mat Fac Fac Ext Cet Arc Hub Fac Machines Accessed 47 | . 4 5 6 6 5 6 3 . 6 6 Terminals 38 | . 4 4 3 5 4 6 3 . 5 4 Fabricators 1 | . . . . . . . . . . 1 Repair Stations 2 | . . 1 1 . . . . . . . Recycling Units . | . . . . . . . . . . . Scanalyzers 2 | . . . 1 . . . . . . 1 Garrison Access 4 | . . . 1 1 1 . . . 1 . Total Hacks 120 | . 9 16 19 12 12 9 7 . 12 24 Successful 55 | . 4 6 8 4 3 5 4 . 8 13 Failed 65 | . 5 10 11 8 9 4 3 . 4 11 Catastrophic 8 | . 1 . 1 1 . . 1 . 1 3 Database Lockouts . | . . . . . . . . . . . Manual 66 | . 6 12 5 8 7 . 3 3 8 14 Terminals 96 | . 9 12 8 11 11 9 7 . 11 18 Fabricators 3 | . . . . . . . . . . 3 Repair Stations 10 | . . 4 6 . . . . . . . Recycling Units . | . . . . . . . . . . . Scanalyzers 6 | . . . 3 . . . . . . 3 Garrison Access 5 | . . . 2 1 1 . . . 1 . Terminal Hacks 25 | . 1 1 1 1 2 5 4 . 4 6 Record 3 | . . . . . . . 3 . . . Part Schematic 1 | . . . . . . . . . . 1 Open Door 6 | . . . . . . 5 1 . . . Level Access Points 1 | . . . . . . . . . . 1 Branch Access Points 2 | . . . . . 1 . . . . 1 Terminal Index 2 | . . . . . 1 . . . . 1 Repair Station Index 1 | . . . . . . . . . . 1 Alert Level 1 | . . . . . . . . . 1 . Unreport Threat 3 | . . 1 1 . . . . . . 1 Zone Layout 5 | . 1 . . 1 . . . . 3 . Fabricator Hacks 2 | . . . . . . . . . . 2 Load Schematic 1 | . . . . . . . . . . 1 Build 1 | . . . . . . . . . . 1 Repair Station Hacks 9 | . . 3 6 . . . . . . . Scan Component 5 | . . 2 3 . . . . . . . Repair 4 | . . 1 3 . . . . . . . Recycling Unit Hacks . | . . . . . . . . . . . Scanalyzer 1 | . . . . . . . . . . 1 Insert Component 1 | . . . . . . . . . . 1 Garrison Access Hacks 2 | . . . . . 1 . . . 1 . Seal Access 2 | . . . . . 1 . . . 1 . Unauthorized Hacks 16 | . 3 2 1 3 . . . . 3 4 Terminals 14 | . 3 2 . 3 . . . . 3 3 Track 1 | . 1 . . . . . . . . . Assimilate 1 | . . . . 1 . . . . . . Botnet 7 | . 1 1 . 1 . . . . 2 2 Operators 5 | . 1 1 . 1 . . . . 1 1 Fabricators 1 | . . . . . . . . . . 1 Liberate 1 | . . . . . . . . . . 1 Repair Stations . | . . . . . . . . . . . Recycling Units . | . . . . . . . . . . . Scanalyzers 1 | . . . 1 . . . . . . . Extract 1 | . . . 1 . . . . . . . Garrison Access . | . . . . . . . . . . . Data Cores Recovered 2 | . . 1 . 1 . . . . . . Used 1 | . . 1 . . . . . . . . Hacking Detections 38 | . 4 5 5 5 4 2 3 . 5 5 Full Trace Events 4 | . . 2 . . 1 . . . . 1 Feedback Events . | . . . . . . . . . . . Feedback Blocked . | . . . . . . . . . . . Robot Schematics Acquired . | . . . . . . . . . . . Robots Built . | . . . . . . . . . . . Authchips . | . . . . . . . . . . . Time . | . . . . . . . . . . . Total Robot Build Rating . | . . . . . . . . . . . Part Schematics Acquired 4 | . . . 3 . . . . . . 1 Parts Built . | . . . . . . . . . . . Authchips . | . . . . . . . . . . . Time 128 | . . . . . . . . . . 128 Total Part Build Rating . | . . . . . . . . . . . Parts Repaired 4 | . . 1 3 . . . . . . . Time 116 | . . 26 90 . . . . . . . Parts Recycled . | . . . . . . . . . . . Recycled Matter . | . . . . . . . . . . . Retrieved Matter . | . . . . . . . . . . . Retrieved Components . | . . . . . . . . . . . Parts Scanalyzed 1 | . . . . . . . . . . 1 Part Schematics Acquired . | . . . . . . . . . . . Parts Damaged 1 | . . . . . . . . . . 1 Bothacking | -11 -10 -9 -8 -7 -6 -6 -6 -6 -6 -5 ------------ Run | Yrd Mat Mat Mat Fac Fac Ext Cet Arc Hub Fac Used RIF Installer . | . . . . . . . . . . . Robots Hacked . | . . . . . . . . . . . Non-combat . | . . . . . . . . . . . Combat . | . . . . . . . . . . . Robot Hacks Applied . | . . . . . . . . . . . Relay Couplers Released 5 | . . . . . 3 . . . . 2 Machine Destruction 5 | . . . . . 3 . . . . 2 Fabnet Peak Effective % . | . . . . . . . . . . . Robots Rewired 13 | . . . . . . 13 . . . . Allies Hacked . | . . . . . . . . . . . Hacks Repelled . | . . . . . . . . . . . Allies | -11 -10 -9 -8 -7 -6 -6 -6 -6 -6 -5 -------- Run | Yrd Mat Mat Mat Fac Fac Ext Cet Arc Hub Fac Total Allies 31 | . . . . 1 . 22 5 . . 3 Largest Group 14 | . . . . 1 . 11 14 14 11 3 Highest-Rated Group 906 | . . . . 26 . 488 906 906 612 90 Highest-Rated Ally 159 | . . . . 26 . 159 159 159 96 30 Total Orders . | . . . . . . . . . . . Ally Attacks 362 | . . . . . . 188 41 16 108 9 Total Damage 8561 | . . . . . . 3830 874 448 3007 402 Kills 63 | . . . . . . 25 5 4 25 4 Allies Corrupted . | . . . . . . . . . . . Allies Melted 1 | . . . . . . . . . 1 . Intel | -11 -10 -9 -8 -7 -6 -6 -6 -6 -6 -5 ------- Run | Yrd Mat Mat Mat Fac Fac Ext Cet Arc Hub Fac Active Infowar (turns) 8827 | 61 641 1356 1230 2218 1433 168 . . 82 1638 Sensors 5281 | . . . . 2146 1318 164 . . 15 1638 Terrain 963 | . . . . . 896 . . . 67 . Seismic 3337 | 61 641 1356 1230 49 . . . . . . Jamming 816 | . . . 652 45 115 4 . . . . Robot Analysis Total . | . . . . . . . . . . . Derelict Logs Recovered . | . . . . . . . . . . . Drone Launches . | . . . . . . . . . . . Drone Recoveries . | . . . . . . . . . . . Exploration | -11 -10 -9 -8 -7 -6 -6 -6 -6 -6 -5 ------------- Run | Yrd Mat Mat Mat Fac Fac Ext Cet Arc Hub Fac Turns Passed 13094 | 113 641 1534 1455 2434 1873 1584 383 183 862 2032 Spaces Moved 4853 | 58 332 535 521 926 593 487 166 89 370 776 Core 12 | 10 . . . . . . . . . 2 Treads 2874 | 48 332 535 107 285 593 299 166 89 370 50 Legs 66 | . . . . . . . . . . 66 Wheels 1901 | . . . 414 641 . 188 . . . 658 Hover . | . . . . . . . . . . . Flight . | . . . . . . . . . . . Fastest Speed 50 | 50 160 160 210 210 232 160 160 160 160 131 Average Speed 203 | 143 160 190 216 221 235 219 172 160 176 197 Slowest Speed 1400 | 160 160 240 240 240 560 240 236 160 245 1400 Overloaded Moves . | . . . . . . . . . . . Propulsion Burnouts . | . . . . . . . . . . . Robots Hopped . | . . . . . . . . . . . Potential Cave-ins 8 | . . . . . . 8 . . . . Cave-ins Triggered . | . . . . . . . . . . . Exploration Rate (%) 42 | 4 56 44 41 25 16 63 75 83 47 18 Regions Visited 10 Branch Regions 4 Pre-discovered Areas . | . . . . . . . . . . . Known Exits Taken 7 | . . . 1 1 1 1 1 1 1 . Unknown Exits Taken 3 | 1 1 1 . . . . . . . . Scrap Searched . | . . . . . . . . . . . Spaces Dug 40 | . . 3 1 3 13 10 . . 4 6 Terrain Destroyed 295 | . 6 3 2 3 48 18 . 1 192 22 Melee 23 | . . 3 1 3 10 . . . . 6 Projectile 66 | . . . 1 . 6 18 . 1 27 13 AOE 206 | . 6 . . . 32 . . . 165 3 Terrain Rammed . | . . . . . . . . . . . Walls Destroyed . | . . . . . . . . . . . Machines Disabled . | . . . . . . . . . . . Actions | -11 -10 -9 -8 -7 -6 -6 -6 -6 -6 -5 --------- Run | Yrd Mat Mat Mat Fac Fac Ext Cet Arc Hub Fac Total 7111 | 77 390 880 783 1214 905 799 250 131 500 1182 Wait 1178 | 2 19 197 155 155 158 62 65 23 74 268 Move 4843 | 57 331 534 520 925 592 486 165 88 369 776 Hop . | . . . . . . . . . . . Pick Up 134 | 8 6 26 24 17 12 15 . 6 4 16 Fast Attach 52 | 6 . 3 2 3 6 5 4 3 3 17 Attach 34 | . 1 5 3 5 10 5 . . 1 4 Detach 6 | . . 1 . 1 . 2 1 . . 1 Swap 141 | . 2 11 18 34 25 20 5 1 8 17 Drop 134 | . 4 14 26 22 14 14 5 9 4 22 Fire 411 | 4 27 86 34 42 68 53 5 1 37 54 Melee 101 | . . 3 1 6 20 64 . . . 7 Ram . | . . . . . . . . . . . Kick . | . . . . . . . . . . . Crush . | . . . . . . . . . . . Escape Stasis 10 | . . . . 4 . 6 . . . . Rewire 67 | . . . . . . 67 . . . . Trap . | . . . . . . . . . . . Miscellaneous . | . . . . . . . . . . . Route ------- -11/Scrapyard -10/Materials (discovered 4 exits: *Mat x2 / [*Min] / [*Sub]) -9/Materials -8/Materials -7/Factory (discovered 4 exits: *Fac / *Sto / *Low x2) -6/Factory (discovered 5 exits: *Fac / Low x2 / *Ext x2) -6/Extension (discovered 2 exits: *Fac / *Cet) -6/Cetus -6/Archives (discovered 3 exits: *Fac / *Hub x2) -6/Hub_04(d) (discovered 2 exits: *Fac x2) -5/Factory (discovered 6 exits: *Fac x4 / Upp x2) History --------- Turn | Location | Event 3 | -11/Scrapyard | Discovered new exit (range 15) 114 | -11/Scrapyard | Entered Materials 307 | -10/Materials | Build established: Mutant 319 | -10/Materials | Discovered new exit (range 8) 395 | -10/Materials | Discovered new exit (range 15) 496 | -10/Materials | Discovered new exit (range 14) 741 | -10/Materials | Discovered new exit (range 10) 755 | -10/Materials | Entered another Materials area 755 | -9/Materials | Evolved 2 slots: Propulsion x1, Utility x1 1528 | -9/Materials | Destroyed 7 combat bots 1542 | -9/Materials | Repaired Lgt. Treads 1719 | -9/Materials | Build established: Scavenger-Mutant 2270 | -9/Materials | Discovered new exit (range 3) 2289 | -9/Materials | Entered another Materials area 2289 | -8/Materials | Evolved 2 slots: Utility x1, Weapon x1 2538 | -8/Materials | Repaired Lgt. Treads 2571 | -8/Materials | Repaired Imp. Ion Engine 2604 | -8/Materials | Repaired Hvy. Assault Rifle 2871 | -8/Materials | Build established: Scavenger-Tank 3655 | -8/Materials | Discovered new exit (range 8) 3743 | -8/Materials | Identified exit to Factory 3744 | -8/Materials | Entered Factory 3744 | -7/Factory | Evolved 2 slots: Propulsion x1, Utility x1 3876 | -7/Factory | Discovered new exit (range 6) 3901 | -7/Factory | Identified exit to Lower Caves 4327 | -7/Factory | Discovered exit to Lower Caves (range 16) 4643 | -7/Factory | Build established: Scavenger-Skirmisher 5492 | -7/Factory | Discovered new exit (range 14) 5523 | -7/Factory | Identified exit to Storage 5847 | -7/Factory | Discovered new exit (range 13) 6080 | -7/Factory | Identified exit to Factory 6178 | -7/Factory | Entered another Factory area 6178 | -6/Factory | Evolved 2 slots: Utility x2 6187 | -6/Factory | Discovered new exit (range 13) 6239 | -6/Factory | Identified exit to Factory 7738 | -6/Factory | Identified exit to Lower Caves 7738 | -6/Factory | Identified exit to Extension 7821 | -6/Factory | Lost 3 parts (3n) 7948 | -6/Factory | Lost 3 parts (1n1u1w) 7979 | -6/Factory | Destroyed 7 combat bots 8051 | -6/Factory | Entered Extension 8230 | -6/Extension | Rescued A7 8293 | -6/Extension | Rescued a captive Derelict 8304 | -6/Extension | Rescued a captive Derelict 8483 | -6/Extension | Build established: Hacker-Mutant 8624 | -6/Extension | Door terminal overloaded 8625 | -6/Extension | Rescued a captive Derelict 8933 | -6/Extension | Rescued a captive Derelict 9047 | -6/Extension | Lost 5 allies 9242 | -6/Extension | Rescued a captive Derelict 9244 | -6/Extension | Rescued a captive Derelict 9451 | -6/Extension | Disrupted transfer network 9474 | -6/Extension | Rescued a captive Derelict 9474 | -6/Extension | Rescued a captive Derelict 9518 | -6/Extension | Lost 3 allies 9582 | -6/Extension | Discovered exit to Factory (range 10) 9588 | -6/Extension | Discovered new exit (range 7) 9629 | -6/Extension | Identified exit to Cetus 9635 | -6/Extension | Entered Cetus 9635 | -6/Cetus | Accompanied by 11 allies (A7) 9640 | -6/Cetus | Acquired a Cetus Manufacturing Module code from A7 9672 | -6/Cetus | Spotted Cetus Guard 9672 | -6/Cetus | Spotted Cetus Guard 9673 | -6/Cetus | Spotted Cetus Guard 9678 | -6/Cetus | Allies destroyed Cetus Guard 9679 | -6/Cetus | Spotted Cetus Guard 9681 | -6/Cetus | Allies destroyed Cetus Guard 9685 | -6/Cetus | Allies destroyed Cetus Guard 9689 | -6/Cetus | Allies destroyed Cetus Guard 9819 | -6/Cetus | Started Cetus Manufacturing Module 9830 | -6/Cetus | Escorted A7 to Cetus Mainframe 9844 | -6/Cetus | Manufactured an Enhanced Grunt 9869 | -6/Cetus | Manufactured an Enhanced Grunt 9894 | -6/Cetus | Manufactured an Enhanced Grunt 9919 | -6/Cetus | Manufactured an Enhanced Grunt 9944 | -6/Cetus | Manufactured an Enhanced Grunt 9967 | -6/Cetus | Discovered new exit (range 15) 9989 | -6/Cetus | Identified exit to Archives 10018 | -6/Cetus | Entered Archives 10018 | -6/Archives | Accompanied by 14 allies (A7) 10023 | -6/Archives | Received a hacking code to weaken MAIN.C 10070 | -6/Archives | Unable to access archive contents 10091 | -6/Archives | Unable to access archive contents 10098 | -6/Archives | Discovered exit to Factory (range 14) 10124 | -6/Archives | Unable to access archive contents 10130 | -6/Archives | Discovered new exit (range 16) 10159 | -6/Archives | Discovered new exit (range 14) 10164 | -6/Archives | Build established: Commander-Tank 10178 | -6/Archives | Identified exit to Hub_04(d) 10201 | -6/Archives | Entered Hub_04(d) 10201 | -6/Hub_04(d) | Accompanied by 11 allies 10278 | -6/Hub_04(d) | Discovered exit to Factory (range 15) 10496 | -6/Hub_04(d) | Lost 8 allies 10514 | -6/Hub_04(d) | Lost 3 parts (1p2n) 10551 | -6/Hub_04(d) | First assault squad dispatched 10668 | -6/Hub_04(d) | Discovered exit to Factory (range 9) 10704 | -6/Hub_04(d) | Core integrity fell below 50% 10922 | -6/Hub_04(d) | Build established: Scavenger-Tank 10970 | -6/Hub_04(d) | Network Hub disabled 11015 | -6/Hub_04(d) | Spotted Lightning 11022 | -6/Hub_04(d) | Network Hub disabled 11022 | -6/Hub_04(d) | Spotted Lightning 11028 | -6/Hub_04(d) | System corruption reached 10% 11063 | -6/Hub_04(d) | Entered Factory 11063 | -5/Factory | Evolved 2 slots: Propulsion x1, Utility x1 11529 | -5/Factory | Build established: Scavenger-Mutant 11637 | -5/Factory | Identified exit to Factory 11637 | -5/Factory | Identified exit to Upper Caves 12003 | -5/Factory | Lost 3 parts (3n) 12418 | -5/Factory | Build established: Scavenger-Skirmisher 12451 | -5/Factory | Lost 3 allies 12988 | -5/Factory | Cargo convoy interrupted 13071 | -5/Factory | Lost 9 allies 13082 | -5/Factory | Core integrity fell below 50% 13090 | -5/Factory | Core integrity fell below 20% 13095 | -5/Factory | Destroyed by H-66 Slayer with Gauss Rifle Last Messages --------------- 13074_ Flexi-carbon Leg destroyed. 13076_ Imp. VSS Leg destroyed. 13076_ Knocked back. 13076_ Slug penetrates Wall. 13078_ Angular Momentum Engine destroyed. 13079_ Slug penetrates Wall. 13080_ Adv. Cooling System destroyed. 13080_ Slug penetrates Wall. 13081_ Wall collapses. 13081_ System corrupted: Heat flow error (+172). 13083_ Penetrated by Slug. 13084_ Slug penetrates Wall. 13084_ Knocked back. 13087_ Penetrated by Slug. 13087_ Adv. Targeting Computer destroyed. 13088_ Powered Hammer destroyed. 13090_ Penetrated by Slug. 13095_ Slug penetrates Wall. 13095_ Knocked back. 13095_ Penetrated by Slug. Map ----- +----------------------------------------------------+ | ????????????????????????# ! | | ????????????????????????# ! | | ???????????????########## | | ???????????????# ## | | ???????????????# ## | | ???????????????# | | ???????????????# ! ! | | ???????????????# | | ???????????????# ##### | | ???????????????# #???? | | ???????????????#"# ###???? | | ????????########## #?????? | | ????????# == # #????? | | ????????# """"= # #?? | | ????????# """" # # """"" | | ????????# """" # " | | ????????# """" + " """"" | | ????????# # % | | ????????# """ # # """"" | | ?######## """ # %#? | | ?# # """ # # """"" | | ?# !# # # ?? | | ?# % #! + / ???"" | | ?# H ; # #?????? | | ?# ########## ##????? | | ?# @%%% #???????? #????? | | ?###;;;########## #????? | | ???## +????? | | ????# % #????? | | ????#% x #????? | | ????# #????? | | ????#### hh #????? | | ???????# #????? | | ???????# #????? | | ???????##"#### #????? | | ??????????#??# #????? | | ?????????????# #????? | | ?????????????# #????? | | ?????????????# #????? | | ?????????????# #????? | | ?????????????# #????? | | ?????????????# #????? | | ?????????????? ????? | | ?????????????? ???? | | ?????????????? %=#??? | | ?????????????? %%???? | | ?????????????? ![?????? | | ?????????????? ????????? | | ?????????????? ??????????? | | ???????????????????????????? | +----------------------------------------------------+ Best States ------------- Heat Dissipation 71 Energy Generation 21 Energy Capacity 325 Matter Stores 300 Matter Capacity 300 Sight Range 16 Robot Scan Range 15 Terrain Scan Range 16 Terrain Scan Density 110 Jamming Range 12 Armor Coverage 450 Resistance: TH 25 Resistance: EM 25 Weapon Shielding 33 Evasion (%) 40 Targeting Accuracy 8 Recoil Reduction 4 Offensive Hacking 20 Item Schematics ----------------- Axe | -8/Materials | Extracted Com. Wheel | -8/Materials | Extracted Imp. Targeting Computer | -8/Materials | Extracted Imp. Heavy Siege Treads | -5/Factory | Hacked Robot Schematics ------------------ None Fabricated ------------ Nothing Repaired ---------- Lgt. Treads | 14% | -9/Materials Lgt. Treads | 22% | -8/Materials Imp. Ion Engine | 17% | -8/Materials Hvy. Assault Rifle | 40% | -8/Materials Alien Tech Used ----------------- None Achievements -------------- Main Advantage Project G-00 Challenges ------------ None Game ------ Seed ExoskeletonSpectralModule Manual? 0 Play Time 03:13:50 Cumulative 253.4 hours Start 2025.05.31 @ 18:06:18 End 2025.06.01 @ 02:41:12 Sessions 5 Manual Loads 0 Difficulty Rogue Special Mode None Game No. 147 Rogue 147 Adventurer 0 Explorer 0 Win Type - Total 3 Types 3/0/0/0/0/0/0/0/0/0 Lore% 33 Gallery% 53 Achievement% 42 Wizard Run 0 Options --------- Layout 2 ASCII 0 Keyboard 0 Movement Mouse Keybinds 0 Fullscreen 1 Font 24/Smallcaps Map View 50x44 Zoom Use 0% Tactical HUD 1 Map Filters NONE Filters NONE Steam 1 RUN: 9bb95dba-55c9-4a5c-801d-5dcb5f382a6f